{"text_format":"1","workbook":"xlsx","n_sheets":1,"sheets":["Hoja1"],"not_rendered":{"charts":0,"images":0,"macros":1,"external_links":0,"defined_names":0,"comments":0,"pivot_tables":0},"unopened":[],"bounds":{"document_bytes":16777216,"sheet_cells":100000,"rows_first":2000,"rows_last":500,"rows_between":2000,"halvings":0,"cell_chars":16384,"cell_head_chars":4096},"cells_cut":0,"cells_raw":0,"read":"whole","date_system":"1900"}

{"sheet":"Hoja1","index":0,"n_rows":29,"n_cols":40,"rows_kept":29,"cut":false,"hidden":false,"merged":[[0,1,0,10],[1,15,1,18],[2,17,2,18],[2,19,2,20],[2,21,2,22],[2,3,2,4],[1,1,2,2],[1,7,1,10],[1,3,1,6],[2,5,2,6],[1,13,2,14],[2,9,2,10],[2,15,2,16],[2,7,2,8],[1,19,1,22],[0,28,0,39],[1,23,1,24],[1,25,1,26],[2,23,2,24],[2,25,2,26],[1,39,2,39],[1,38,2,38],[1,36,1,37],[2,36,2,37],[2,30,2,31],[2,32,2,33],[1,28,2,29],[2,34,2,35],[1,30,1,35],[0,13,0,26]]}
[null,"COMPETENCIAS SOCIAIS E CÍVICAS 2º PRIMARIA (I)",null,null,null,null,null,null,null,null,null,null,null,"COMPETENCIAS SOCIAIS E CÍVICAS 2º PRIMARIA (II)",null,null,null,null,null,null,null,null,null,null,null,null,null,null,"COMPETENCIAS SOCIAIS E CÍVICAS (III)"]
[null,"2º A",null,"C. DA NATUREZA",null,null,null,"CIENCIAS SOCIAIS",null,null,null,null,null,"2º A",null,"EDUCACIÓN FÍSICA",null,null,null,"E. MUSICAL",null,null,null,"E. PLÁSTICA",null,"L. CASTELÁ",null,null,"2º A",null,"LINGUA GALEGA",null,null,null,null,null,"L. ESTRANX.",null,"NOTA MEDIA","CUALIFICACIÓN"]
[null,null,null,"2º-CNB1.2.1 - Utiliza estratexias para traballar de forma individual e en equipo e respecta os compañeiros/as, o material e as normas de convivencia.",null,"2º-CNB5.1.2 - Coñece os oficios das persoas do seu contorno e valora a importancia de cada profesión, a responsabilidade e a contribución social, evitando estereotipos sexistas.",null,"2º-CSB1.2.1 - Participa en actividades individuais e de grupo adoitando un comportamento responsable, construtivo e solidario, valorando o esforzo e o coidado do material.",null,"2º-CSB3.4.1 - Amosa unha actitude de aceptación e respecto ante as diferenzas individuais nos grupos aos que pertence e cos que convive, nos xogos e nas tarefas escolares.",null,null,null,null,null,"2º-EFB1.1.3 - Mostra boa disposición para solucionar os conflitos de xeito razoable.",null,"2º-EFB2.1.1 - Respecta a diversidade de realidades corporais e de niveis de competencia motriz entre os nenos e nenas da clase.",null,"2º-EMB1.4.3 - Coñece e respecta as normas de comportamento básicas en concertos e outras representacións musicais.",null,"2º-EMB3.1.2 - Interactúa adecuadamente cos compañeiros e coas compañeiras, amosando interese e respectando as normas e as intervencións das demais persoas.",null,"2º-EPB2.7.1 - Coida o material e respecta as normas preestablecidas.",null,"2º-LCB1.1.2 - Aplica as normas socio - comunicativas: escoita, espera de quendas.",null,null,null,null,"2º-LGB1.4.1 - Atende as intervencións dos e das demais en conversas e exposicións, sen interromper.",null,"2º-LGB1.5.2 - Respecta as opinións das persoas participantes nos intercambios orais. ",null,"2º-LGB1.5.6 - Participa na conversa formulando e contestando preguntas. ",null,"2º-PLEB2.3 - Amosa unha actitude de escoita atenta"]
[null,null,"ALUMNO /A","Nota",0.05,"Nota",0.05,"Nota",0.05,"Nota",0.05,null,null,null,"ALUMNO /A","Nota",0.1,"Nota",0.05,"Nota",0.05,"Nota",0.05,"Nota",0.05,"Nota",0.2,null,null,"ALUMNO /A","Nota",0.05,"Nota",0.1,"Nota",0.05,"Nota",0.1,1]
[null,1,null,null,{"$f":"D5*0.05","v":0},null,{"$f":"F5*0.05","v":0},null,{"$f":"H5*0.05","v":0},null,{"$f":"J5*0.05","v":0},null,null,1,null,null,{"$f":"P5*0.1","v":0},null,{"$f":"R5*0.05","v":0},null,{"$f":"T5*0.05","v":0},null,{"$f":"V5*0.05","v":0},null,{"$f":"X5*0.05","v":0},null,{"$f":"Z5*0.2","v":0},null,1,null,null,{"$f":"AE5*0.05","v":0},null,{"$f":"AG5*0.1","v":0},null,{"$f":"AI5*0.05","v":0},null,{"$f":"AK5*0.1","v":0},{"$f":"SUM(AL5,AJ5,AH5,AF5,AA5,Y5,W5,U5,S5,Q5,K5,I5,G5,E5)","v":0},{"$f":"IF(AM5<5,\"INSUFICIENTE\",IF(AM5<6,\"SUFICIENTE\",IF(AM5<7,\"BIEN\",IF(AM5<9,\"NOTABLE\",\"SOBRESALIENTE\"))))","v":"INSUFICIENTE"}]
[null,2,null,null,{"$f":"D6*0.05","v":0},null,{"$f":"F6*0.05","v":0},null,{"$f":"H6*0.05","v":0},null,{"$f":"J6*0.05","v":0},null,null,2,null,null,{"$f":"P6*0.1","v":0},null,{"$f":"R6*0.05","v":0},null,{"$f":"T6*0.05","v":0},null,{"$f":"V6*0.05","v":0},null,{"$f":"X6*0.05","v":0},null,{"$f":"Z6*0.2","v":0},null,2,null,null,{"$f":"AE6*0.05","v":0},null,{"$f":"AG6*0.1","v":0},null,{"$f":"AI6*0.05","v":0},null,{"$f":"AK6*0.1","v":0},{"$f":"SUM(AL6,AJ6,AH6,AF6,AA6,Y6,W6,U6,S6,Q6,K6,I6,G6,E6)","v":0},{"$f":"IF(AM6<5,\"INSUFICIENTE\",IF(AM6<6,\"SUFICIENTE\",IF(AM6<7,\"BIEN\",IF(AM6<9,\"NOTABLE\",\"SOBRESALIENTE\"))))","v":"INSUFICIENTE"}]
[null,3,null,null,0,null,0,null,0,null,0,null,null,3,null,null,0,null,0,null,0,null,0,null,0,null,0,null,3,null,null,0,null,0,null,0,null,0,0,"INSUFICIENTE"]
[null,4,null,null,0,null,0,null,0,null,0,null,null,4,null,null,0,null,0,null,0,null,0,null,0,null,0,null,4,null,null,0,null,0,null,0,null,0,0,"INSUFICIENTE"]
[null,5,null,null,0,null,0,null,0,null,0,null,null,5,null,null,0,null,0,null,0,null,0,null,0,null,0,null,5,null,null,0,null,0,null,0,null,0,0,"INSUFICIENTE"]
[null,{"$f":"B9+1","v":6},null,null,0,null,0,null,0,null,0,null,null,{"$f":"N9+1","v":6},null,null,0,null,0,null,0,null,0,null,0,null,0,null,6,null,null,0,null,0,null,0,null,0,0,"INSUFICIENTE"]
[null,{"$f":"B10+1","v":7},null,null,0,null,0,null,0,null,0,null,null,{"$f":"N10+1","v":7},null,null,0,null,0,null,0,null,0,null,0,null,0,null,7,null,null,0,null,0,null,0,null,0,0,"INSUFICIENTE"]
[null,8,null,null,0,null,0,null,0,null,0,null,null,8,null,null,0,null,0,null,0,null,0,null,0,null,0,null,8,null,null,0,null,0,null,0,null,0,0,"INSUFICIENTE"]
[null,9,null,null,0,null,0,null,0,null,0,null,null,9,null,null,0,null,0,null,0,null,0,null,0,null,0,null,9,null,null,{"$f":"AE13*0.05","v":0},null,0,null,0,null,0,0,"INSUFICIENTE"]
[null,10,null,null,0,null,0,null,0,null,0,null,null,10,null,null,0,null,0,null,0,null,0,null,0,null,0,null,10,null,null,{"$f":"AE14*0.05","v":0},null,0,null,0,null,0,0,"INSUFICIENTE"]
[null,11,null,null,0,null,0,null,0,null,0,null,null,11,null,null,0,null,0,null,0,null,0,null,0,null,0,null,11,null,null,0,null,0,null,0,null,0,0,"INSUFICIENTE"]
[null,12,null,null,0,null,0,null,0,null,0,null,null,12,null,null,0,null,0,null,0,null,0,null,0,null,0,null,12,null,null,0,null,0,null,0,null,0,0,"INSUFICIENTE"]
[null,13,null,null,0,null,0,null,0,null,0,null,null,13,null,null,0,null,0,null,0,null,0,null,0,null,0,null,13,null,null,0,null,0,null,0,null,0,0,"INSUFICIENTE"]
[null,14,null,null,0,null,0,null,0,null,0,null,null,14,null,null,0,null,0,null,0,null,0,null,0,null,0,null,14,null,null,0,null,0,null,0,null,0,0,"INSUFICIENTE"]
[null,15,null,null,0,null,0,null,0,null,0,null,null,15,null,null,0,null,0,null,0,null,0,null,0,null,0,null,15,null,null,0,null,0,null,0,null,0,0,"INSUFICIENTE"]
[null,16,null,null,0,null,0,null,0,null,0,null,null,16,null,null,0,null,0,null,0,null,0,null,0,null,0,null,16,null,null,0,null,0,null,0,null,0,0,"INSUFICIENTE"]
[null,17,null,null,0,null,0,null,0,null,0,null,null,17,null,null,0,null,0,null,0,null,0,null,0,null,0,null,17,null,null,0,null,0,null,0,null,0,0,"INSUFICIENTE"]
[null,18,null,null,0,null,0,null,0,null,0,null,null,18,null,null,0,null,0,null,0,null,0,null,0,null,0,null,18,null,null,0,null,0,null,0,null,0,0,"INSUFICIENTE"]
[null,19,null,null,0,null,0,null,0,null,0,null,null,19,null,null,0,null,0,null,0,null,0,null,0,null,0,null,19,null,null,0,null,0,null,0,null,0,0,"INSUFICIENTE"]
[null,20,null,null,0,null,0,null,0,null,0,null,null,20,null,null,0,null,0,null,0,null,0,null,0,null,0,null,20,null,null,0,null,0,null,0,null,0,0,"INSUFICIENTE"]
[null,21,null,null,0,null,0,null,0,null,0,null,null,21,null,null,0,null,0,null,0,null,0,null,0,null,0,null,21,null,null,0,null,0,null,0,null,0,0,"INSUFICIENTE"]
[null,22,null,null,0,null,0,null,0,null,0,null,null,22,null,null,0,null,0,null,0,null,0,null,0,null,0,null,22,null,null,0,null,0,null,0,null,0,0,"INSUFICIENTE"]
[null,23,null,null,0,null,0,null,0,null,0,null,null,23,null,null,0,null,0,null,0,null,0,null,0,null,0,null,23,null,null,0,null,0,null,0,null,0,0,"INSUFICIENTE"]
[null,24,null,null,0,null,0,null,0,null,0,null,null,24,null,null,0,null,0,null,0,null,0,null,0,null,0,null,24,null,null,0,null,0,null,0,null,0,0,"INSUFICIENTE"]
[null,25,null,null,0,null,0,null,0,null,0,null,null,25,null,null,0,null,0,null,0,null,0,null,0,null,0,null,25,null,null,0,null,0,null,0,null,0,0,"INSUFICIENTE"]